[Event "Late-Titled-Tuesday-Blitz-June-25-2024"]
[Site "Chess.com"]
[Date "2024.06.25"]
[Round "11"]
[White "PoAslan"]
[Black "Niktlt"]
[Result "1-0"]
[WhiteElo "2471"]
[BlackElo "2577"]
[TimeControl "180+1"]
[EndTime "16:04:20 PDT"]
[Termination "PoAslan won by resignation"]

1. e4 {[%clk 0:03:00.9]} 1... c5 {[%clk 0:02:59.7]} 2. Nf3 {[%clk 0:02:59.5]}
2... d6 {[%clk 0:02:59.7]} 3. d4 {[%clk 0:02:59.2]} 3... cxd4 {[%clk 0:03:00.6]}
4. Nxd4 {[%clk 0:03:00]} 4... Nf6 {[%clk 0:03:01.1]} 5. Nc3 {[%clk 0:02:59.8]}
5... a6 {[%clk 0:03:01.5]} 6. Bg5 {[%clk 0:03:00]} 6... Nbd7 {[%clk 0:03:00.6]}
7. f4 {[%clk 0:02:59.4]} 7... Qc7 {[%clk 0:02:57.2]} 8. Qf3 {[%clk 0:02:59]}
8... h6 {[%clk 0:02:56.5]} 9. Bh4 {[%clk 0:02:58.7]} 9... g5 {[%clk 0:02:56.8]}
10. fxg5 {[%clk 0:02:58.9]} 10... hxg5 {[%clk 0:02:57.7]} 11. Bxg5 {[%clk
0:02:58.6]} 11... Qc5 {[%clk 0:02:58.3]} 12. Be3 {[%clk 0:02:54.3]} 12... Ne5
{[%clk 0:02:58.6]} 13. Qe2 {[%clk 0:02:54.5]} 13... Neg4 {[%clk 0:02:58.8]} 14.
Bg1 {[%clk 0:02:55]} 14... Bh6 {[%clk 0:02:58.5]} 15. g3 {[%clk 0:02:46.5]}
15... Bd7 {[%clk 0:02:35.8]} 16. a3 {[%clk 0:02:42.1]} 16... O-O-O {[%clk
0:02:28.5]} 17. Nf5 {[%clk 0:02:28.7]} 17... Qe5 {[%clk 0:02:23.2]} 18. Bd4
{[%clk 0:02:23.5]} 18... Qe6 {[%clk 0:02:19.2]} 19. Bh3 {[%clk 0:02:10.1]} 19...
Ne5 {[%clk 0:02:05.9]} 20. O-O {[%clk 0:01:56.6]} 20... Rde8 {[%clk 0:01:59.1]}
21. Rad1 {[%clk 0:01:49.4]} 21... Qc4 {[%clk 0:01:47.1]} 22. Qxc4+ {[%clk
0:01:36.8]} 22... Nxc4 {[%clk 0:01:45.5]} 23. Nxe7+ {[%clk 0:01:26.8]} 23...
Rxe7 {[%clk 0:01:40]} 24. Bxd7+ {[%clk 0:01:26.7]} 24... Rxd7 {[%clk 0:01:35.2]}
25. Bxf6 {[%clk 0:01:24]} 25... Be3+ {[%clk 0:01:30.6]} 26. Kg2 {[%clk
0:01:22.6]} 26... Rg8 {[%clk 0:01:25.7]} 27. Nd5 {[%clk 0:01:22.6]} 27... Ba7
{[%clk 0:01:20.8]} 28. Bd4 {[%clk 0:01:15.4]} 28... Bxd4 {[%clk 0:01:13.4]} 29.
Rxd4 {[%clk 0:01:16.3]} 29... Ne5 {[%clk 0:01:10.2]} 30. Nf6 {[%clk 0:01:16.5]}
30... Ng4 {[%clk 0:01:09.2]} 31. Nxg8 {[%clk 0:01:13.7]} 31... Ne3+ {[%clk
0:01:09.5]} 32. Kf2 {[%clk 0:01:13.9]} 32... Nxf1 {[%clk 0:01:09.9]} 33. Kxf1
{[%clk 0:01:14.8]} 1-0

[Event "Late-Titled-Tuesday-Blitz-June-25-2024"]
[Site "Chess.com"]
[Date "2024.06.25"]
[Round "11"]
[White "PapaieDudu"]
[Black "jcmesafischer"]
[Result "1-0"]
[WhiteElo "2448"]
[BlackElo "2350"]
[TimeControl "180+1"]
[EndTime "16:04:36 PDT"]
[Termination "PapaieDudu won on time"]

1. Nf3 {[%clk 0:03:00.9]} 1... d5 {[%clk 0:02:57.3]} 2. d4 {[%clk 0:03:01.2]}
2... Nf6 {[%clk 0:02:52.1]} 3. c4 {[%clk 0:03:01.3]} 3... e6 {[%clk 0:02:49.1]}
4. Nc3 {[%clk 0:03:01.7]} 4... Be7 {[%clk 0:02:45.6]} 5. Bg5 {[%clk 0:03:01.6]}
5... Nbd7 {[%clk 0:02:44.4]} 6. e3 {[%clk 0:03:02.1]} 6... c6 {[%clk 0:02:34.4]}
7. Bd3 {[%clk 0:03:01.9]} 7... dxc4 {[%clk 0:02:32.7]} 8. Bxc4 {[%clk
0:03:02.8]} 8... b5 {[%clk 0:02:33.4]} 9. Bb3 {[%clk 0:03:02.8]} 9... a6 {[%clk
0:02:34.3]} 10. O-O {[%clk 0:03:03.3]} 10... O-O {[%clk 0:02:30.2]} 11. Qe2
{[%clk 0:03:03.9]} 11... c5 {[%clk 0:02:29]} 12. Rfd1 {[%clk 0:03:03.7]} 12...
cxd4 {[%clk 0:02:23.5]} 13. exd4 {[%clk 0:03:02.5]} 13... Bb7 {[%clk 0:02:15]}
14. Ne5 {[%clk 0:03:02.5]} 14... Nb6 {[%clk 0:02:08.4]} 15. Nxf7 {[%clk
0:02:57.4]} 15... Rxf7 {[%clk 0:02:00.4]} 16. Qxe6 {[%clk 0:02:57]} 16... Nfd5
{[%clk 0:01:58.2]} 17. Nxd5 {[%clk 0:02:53.1]} 17... Bxd5 {[%clk 0:01:40.9]} 18.
Bxe7 {[%clk 0:02:47.6]} 18... Bxe6 {[%clk 0:01:39.9]} 19. Bxd8 {[%clk 0:02:48]}
19... Bxb3 {[%clk 0:01:40.1]} 20. Bxb6 {[%clk 0:02:41.3]} 20... Bxd1 {[%clk
0:01:38.9]} 21. Rxd1 {[%clk 0:02:42]} 21... Rd7 {[%clk 0:01:30.6]} 22. b4 {[%clk
0:02:39.9]} 22... Rc8 {[%clk 0:01:26.4]} 23. Bc5 {[%clk 0:02:40]} 23... Re8
{[%clk 0:01:22.5]} 24. Kf1 {[%clk 0:02:39.7]} 24... Rd5 {[%clk 0:00:59.4]} 25.
g3 {[%clk 0:02:31.7]} 25... g5 {[%clk 0:00:56.5]} 26. h3 {[%clk 0:02:31.1]}
26... Kf7 {[%clk 0:00:56.4]} 27. Kg2 {[%clk 0:02:29.6]} 27... Re2 {[%clk
0:00:50.3]} 28. a3 {[%clk 0:02:29.6]} 28... h5 {[%clk 0:00:46.8]} 29. Kf3 {[%clk
0:02:27]} 29... Re6 {[%clk 0:00:46.3]} 30. g4 {[%clk 0:02:21.5]} 30... Rf6+
{[%clk 0:00:40.1]} 31. Kg3 {[%clk 0:02:17.8]} 31... h4+ {[%clk 0:00:38.3]} 32.
Kg2 {[%clk 0:02:17.8]} 32... Re6 {[%clk 0:00:29.5]} 33. Kf3 {[%clk 0:02:11.5]}
1-0

[Event "Late-Titled-Tuesday-Blitz-June-25-2024"]
[Site "Chess.com"]
[Date "2024.06.25"]
[Round "11"]
[White "ShimogaTactician"]
[Black "howitzer14"]
[Result "0-1"]
[WhiteElo "2516"]
[BlackElo "3028"]
[TimeControl "180+1"]
[EndTime "16:04:47 PDT"]
[Termination "howitzer14 won by resignation"]

1. Nf3 {[%clk 0:03:00.9]} 1... g6 {[%clk 0:02:57]} 2. c4 {[%clk 0:03:00.3]} 2...
Bg7 {[%clk 0:02:56.3]} 3. e4 {[%clk 0:03:00.8]} 3... d6 {[%clk 0:02:55.5]} 4. d4
{[%clk 0:03:01.2]} 4... Nf6 {[%clk 0:02:55.9]} 5. Nc3 {[%clk 0:02:59.5]} 5...
O-O {[%clk 0:02:56.6]} 6. Be2 {[%clk 0:02:59.9]} 6... e5 {[%clk 0:02:53]} 7. O-O
{[%clk 0:02:53.6]} 7... c6 {[%clk 0:02:48.8]} 8. d5 {[%clk 0:02:50.7]} 8... Na6
{[%clk 0:02:40]} 9. Be3 {[%clk 0:02:28.3]} 9... Ng4 {[%clk 0:02:38.2]} 10. Bg5
{[%clk 0:02:28.6]} 10... f6 {[%clk 0:02:36.1]} 11. Bd2 {[%clk 0:02:25.5]} 11...
f5 {[%clk 0:02:32.1]} 12. Ng5 {[%clk 0:02:19.5]} 12... Nf6 {[%clk 0:02:26.6]}
13. exf5 {[%clk 0:01:46.8]} 13... gxf5 {[%clk 0:02:24.9]} 14. Qc2 {[%clk
0:01:38.8]} 14... Qe8 {[%clk 0:02:20.1]} 15. f4 {[%clk 0:01:36]} 15... e4 {[%clk
0:02:18]} 16. Be3 {[%clk 0:01:32.8]} 16... Nc7 {[%clk 0:01:59.9]} 17. b4 {[%clk
0:01:17.9]} 17... h6 {[%clk 0:01:50.6]} 18. Nh3 {[%clk 0:01:11]} 18... cxd5
{[%clk 0:01:50.8]} 19. Rad1 {[%clk 0:01:10.7]} 19... Be6 {[%clk 0:01:47.5]} 20.
cxd5 {[%clk 0:01:07.5]} 20... Ncxd5 {[%clk 0:01:44.2]} 21. Nxd5 {[%clk
0:01:07.1]} 21... Nxd5 {[%clk 0:01:42.5]} 22. Qd2 {[%clk 0:01:02.7]} 22... Nxe3
{[%clk 0:01:37.3]} 23. Qxe3 {[%clk 0:01:02.4]} 23... d5 {[%clk 0:01:38.2]} 24.
Nf2 {[%clk 0:00:42.2]} 24... Qe7 {[%clk 0:01:35.1]} 25. a3 {[%clk 0:00:38.5]}
25... Rfd8 {[%clk 0:01:30.8]} 26. g4 {[%clk 0:00:35.5]} 26... d4 {[%clk
0:01:30.6]} 27. Qg3 {[%clk 0:00:35.4]} 27... d3 {[%clk 0:01:28]} 28. Nxd3 {[%clk
0:00:33.5]} 28... exd3 {[%clk 0:01:27]} 29. Bxd3 {[%clk 0:00:33.7]} 29... fxg4
{[%clk 0:01:22.6]} 30. f5 {[%clk 0:00:32.2]} 30... Bd4+ {[%clk 0:01:21.8]} 0-1

[Event "Late-Titled-Tuesday-Blitz-June-25-2024"]
[Site "Chess.com"]
[Date "2024.06.25"]
[Round "11"]
[White "zajka-molotok"]
[Black "Meri-Arabidze"]
[Result "1-0"]
[WhiteElo "2588"]
[BlackElo "2699"]
[TimeControl "180+1"]
[EndTime "16:05:21 PDT"]
[Termination "zajka-molotok won by resignation"]

1. e4 {[%clk 0:03:00.9]} 1... c5 {[%clk 0:02:56.1]} 2. Nf3 {[%clk 0:03:00.7]}
2... e6 {[%clk 0:02:56.4]} 3. g3 {[%clk 0:02:59.8]} 3... d5 {[%clk 0:02:54.8]}
4. exd5 {[%clk 0:02:58.2]} 4... exd5 {[%clk 0:02:55.7]} 5. d4 {[%clk 0:02:56.9]}
5... cxd4 {[%clk 0:02:56.6]} 6. Nxd4 {[%clk 0:02:55.4]} 6... Nc6 {[%clk
0:02:56.3]} 7. Bg2 {[%clk 0:02:52.3]} 7... Bc5 {[%clk 0:02:56.4]} 8. Nxc6 {[%clk
0:02:35.9]} 8... bxc6 {[%clk 0:02:57.3]} 9. O-O {[%clk 0:02:35.9]} 9... Nf6
{[%clk 0:02:57.9]} 10. Re1+ {[%clk 0:02:35.4]} 10... Be6 {[%clk 0:02:58.2]} 11.
Be3 {[%clk 0:02:33.8]} 11... Bxe3 {[%clk 0:02:52.7]} 12. Rxe3 {[%clk 0:02:34.7]}
12... O-O {[%clk 0:02:53.1]} 13. c3 {[%clk 0:02:29.3]} 13... Rb8 {[%clk
0:02:46.7]} 14. b3 {[%clk 0:02:27.8]} 14... c5 {[%clk 0:02:46.4]} 15. Nd2 {[%clk
0:02:18.2]} 15... d4 {[%clk 0:02:40.3]} 16. cxd4 {[%clk 0:02:15.8]} 16... cxd4
{[%clk 0:02:41.2]} 17. Re1 {[%clk 0:02:10.6]} 17... Bg4 {[%clk 0:02:23.3]} 18.
Nf3 {[%clk 0:02:03.8]} 18... Rb4 {[%clk 0:01:53.7]} 19. a3 {[%clk 0:02:02]}
19... Rb6 {[%clk 0:01:52.9]} 20. Qxd4 {[%clk 0:01:59.4]} 20... Bxf3 {[%clk
0:01:45.8]} 21. Qxd8 {[%clk 0:01:58.5]} 21... Rxd8 {[%clk 0:01:46.7]} 22. Bxf3
{[%clk 0:01:58.1]} 22... Rxb3 {[%clk 0:01:47.4]} 23. Bc6 {[%clk 0:01:47.9]}
23... g5 {[%clk 0:01:42.6]} 24. a4 {[%clk 0:01:44.8]} 24... h6 {[%clk
0:01:37.1]} 25. Rad1 {[%clk 0:01:43.7]} 25... Rxd1 {[%clk 0:01:29]} 26. Rxd1
{[%clk 0:01:44.6]} 26... Rc3 {[%clk 0:01:26.9]} 27. Bb5 {[%clk 0:01:43.1]} 27...
a5 {[%clk 0:01:17.8]} 28. Rd6 {[%clk 0:01:39.4]} 28... Kg7 {[%clk 0:01:17.2]}
29. Ra6 {[%clk 0:01:38.4]} 29... Ne4 {[%clk 0:01:10.2]} 30. Rxa5 {[%clk
0:01:36.6]} 30... Rc1+ {[%clk 0:01:07.2]} 31. Kg2 {[%clk 0:01:35.2]} 31... Rc2
{[%clk 0:01:07.8]} 32. Bd3 {[%clk 0:01:30.4]} 32... Rc5 {[%clk 0:00:37.5]} 33.
Rxc5 {[%clk 0:01:29.9]} 33... Nxc5 {[%clk 0:00:38.4]} 34. a5 {[%clk 0:01:25.2]}
34... Kf6 {[%clk 0:00:19.1]} 35. a6 {[%clk 0:01:24.7]} 1-0

[Event "Late-Titled-Tuesday-Blitz-June-25-2024"]
[Site "Chess.com"]
[Date "2024.06.25"]
[Round "11"]
[White "KorolDimitriy75"]
[Black "vova-79"]
[Result "0-1"]
[WhiteElo "2422"]
[BlackElo "2589"]
[TimeControl "180+1"]
[EndTime "16:05:29 PDT"]
[Termination "vova-79 won on time"]

1. d4 {[%clk 0:03:00.9]} 1... d5 {[%clk 0:02:58.6]} 2. c4 {[%clk 0:03:01]} 2...
c6 {[%clk 0:02:58.5]} 3. Nc3 {[%clk 0:03:01]} 3... Nf6 {[%clk 0:02:58.7]} 4. e3
{[%clk 0:03:00.9]} 4... e6 {[%clk 0:02:59.1]} 5. Nf3 {[%clk 0:03:01.1]} 5...
Nbd7 {[%clk 0:02:59.1]} 6. Bd3 {[%clk 0:03:01.3]} 6... Be7 {[%clk 0:02:56.4]} 7.
O-O {[%clk 0:03:00.8]} 7... O-O {[%clk 0:02:57]} 8. e4 {[%clk 0:03:01]} 8...
dxe4 {[%clk 0:02:57.3]} 9. Nxe4 {[%clk 0:03:01.9]} 9... c5 {[%clk 0:02:57.9]}
10. Nxc5 {[%clk 0:02:42]} 10... Nxc5 {[%clk 0:02:31.6]} 11. dxc5 {[%clk
0:02:42.9]} 11... Bxc5 {[%clk 0:02:31.9]} 12. Bg5 {[%clk 0:02:33.6]} 12... h6
{[%clk 0:02:24.7]} 13. Bh4 {[%clk 0:02:33.1]} 13... b6 {[%clk 0:02:23.7]} 14.
Qe2 {[%clk 0:02:28.5]} 14... Bb7 {[%clk 0:02:23.1]} 15. Rad1 {[%clk 0:02:14]}
15... Qc7 {[%clk 0:02:17.9]} 16. Ne5 {[%clk 0:01:12.9]} 16... Rfd8 {[%clk
0:02:09.8]} 17. Bxf6 {[%clk 0:00:15.7]} 17... gxf6 {[%clk 0:02:10.7]} 18. Qg4+
{[%clk 0:00:15.2]} 18... Kf8 {[%clk 0:02:03.1]} 19. Nf3 {[%clk 0:00:14.9]} 19...
Ke7 {[%clk 0:01:58.7]} 20. Rfe1 {[%clk 0:00:13.8]} 20... Rg8 {[%clk 0:01:57.7]}
21. Qh3 {[%clk 0:00:12]} 21... Qf4 {[%clk 0:01:41.1]} 22. Nh4 {[%clk 0:00:09.3]}
22... Bxf2+ {[%clk 0:01:19.5]} 23. Kh1 {[%clk 0:00:08.3]} 23... Qxh4 {[%clk
0:01:11.5]} 24. Be4 {[%clk 0:00:03.9]} 24... Qxh3 {[%clk 0:01:02]} 25. gxh3
{[%clk 0:00:01.5]} 25... Bxe1 {[%clk 0:01:00.4]} 0-1

[Event "Late-Titled-Tuesday-Blitz-June-25-2024"]
[Site "Chess.com"]
[Date "2024.06.25"]
[Round "11"]
[White "Veleamater"]
[Black "Sasha_Solovev_777"]
[Result "0-1"]
[WhiteElo "2392"]
[BlackElo "2283"]
[TimeControl "180+1"]
[EndTime "16:05:31 PDT"]
[Termination "Sasha_Solovev_777 won by checkmate"]

1. g3 {[%clk 0:03:00.9]} 1... Nf6 {[%clk 0:02:58.9]} 2. Bg2 {[%clk 0:03:00]}
2... g6 {[%clk 0:02:59.1]} 3. d3 {[%clk 0:03:00.2]} 3... Bg7 {[%clk 0:02:59.3]}
4. e4 {[%clk 0:03:00.3]} 4... d6 {[%clk 0:02:59.4]} 5. Nc3 {[%clk 0:03:00.2]}
5... c5 {[%clk 0:02:59.7]} 6. h3 {[%clk 0:03:00.1]} 6... Nc6 {[%clk 0:03:00]} 7.
f4 {[%clk 0:03:00.1]} 7... O-O {[%clk 0:02:58.4]} 8. Nf3 {[%clk 0:02:59.7]} 8...
Rb8 {[%clk 0:02:57.5]} 9. g4 {[%clk 0:02:57.4]} 9... Nd4 {[%clk 0:02:51.7]} 10.
O-O {[%clk 0:02:45.2]} 10... b5 {[%clk 0:02:46]} 11. Ne2 {[%clk 0:02:43.7]}
11... Nxf3+ {[%clk 0:02:42.5]} 12. Bxf3 {[%clk 0:02:43]} 12... Bb7 {[%clk
0:02:34.8]} 13. g5 {[%clk 0:02:42.4]} 13... Nd7 {[%clk 0:02:34.3]} 14. Ng3
{[%clk 0:02:41.7]} 14... f5 {[%clk 0:02:12.7]} 15. gxf6 {[%clk 0:02:39]} 15...
Nxf6 {[%clk 0:02:08.6]} 16. f5 {[%clk 0:02:38.6]} 16... Nd7 {[%clk 0:01:58.4]}
17. Rb1 {[%clk 0:02:33.9]} 17... Ne5 {[%clk 0:01:56.4]} 18. Bg4 {[%clk
0:02:32.2]} 18... d5 {[%clk 0:01:44.8]} 19. Bf4 {[%clk 0:02:26.1]} 19... dxe4
{[%clk 0:01:40.7]} 20. Nxe4 {[%clk 0:02:24.1]} 20... gxf5 {[%clk 0:01:34.6]} 21.
Bxe5 {[%clk 0:02:22.5]} 21... fxe4 {[%clk 0:01:02.5]} 22. Be6+ {[%clk
0:02:11.3]} 22... Kh8 {[%clk 0:01:02]} 23. Bxg7+ {[%clk 0:01:53]} 23... Kxg7
{[%clk 0:01:01.9]} 24. Qg4+ {[%clk 0:01:49.9]} 24... Kh8 {[%clk 0:01:01.2]} 25.
dxe4 {[%clk 0:01:29.4]} 25... Qd4+ {[%clk 0:00:58.6]} 26. Kh2 {[%clk 0:01:27.2]}
26... Qe5+ {[%clk 0:00:24.2]} 27. Kg1 {[%clk 0:01:21.5]} 27... Rg8 {[%clk
0:00:23.7]} 28. Bxg8 {[%clk 0:01:14]} 28... Rxg8 {[%clk 0:00:24.6]} 29. Rbd1
{[%clk 0:01:04.9]} 29... Rxg4+ {[%clk 0:00:24.1]} 30. hxg4 {[%clk 0:01:04.7]}
30... Qxe4 {[%clk 0:00:24.3]} 31. Kf2 {[%clk 0:00:58.4]} 31... Qf3+ {[%clk
0:00:20.6]} 32. Ke1 {[%clk 0:00:57.3]} 32... Qe3# {[%clk 0:00:20.7]} 0-1

[Event "Late-Titled-Tuesday-Blitz-June-25-2024"]
[Site "Chess.com"]
[Date "2024.06.25"]
[Round "11"]
[White "Gyulamiryan-koryun"]
[Black "carloseduar100"]
[Result "0-1"]
[WhiteElo "1822"]
[BlackElo "2263"]
[TimeControl "180+1"]
[EndTime "16:05:33 PDT"]
[Termination "carloseduar100 won by resignation"]

1. e4 {[%clk 0:02:59.1]} 1... e5 {[%clk 0:02:59.2]} 2. f4 {[%clk 0:02:59]} 2...
exf4 {[%clk 0:02:58.6]} 3. Nf3 {[%clk 0:02:59.6]} 3... d5 {[%clk 0:02:56.4]} 4.
e5 {[%clk 0:02:58.9]} 4... c5 {[%clk 0:02:55.9]} 5. c3 {[%clk 0:02:57.9]} 5...
Nc6 {[%clk 0:02:55.5]} 6. d4 {[%clk 0:02:57.8]} 6... cxd4 {[%clk 0:02:55.9]} 7.
cxd4 {[%clk 0:02:57.5]} 7... g5 {[%clk 0:02:56.5]} 8. h4 {[%clk 0:02:56.5]} 8...
g4 {[%clk 0:02:56.1]} 9. Ng1 {[%clk 0:02:47.2]} 9... Qb6 {[%clk 0:02:55.5]} 10.
Ne2 {[%clk 0:02:32.5]} 10... f3 {[%clk 0:02:54.8]} 11. gxf3 {[%clk 0:02:28.7]}
11... gxf3 {[%clk 0:02:55.7]} 12. Nf4 {[%clk 0:02:26]} 12... Qxd4 {[%clk
0:02:55.5]} 13. Qxd4 {[%clk 0:02:25]} 13... Nxd4 {[%clk 0:02:55.3]} 14. Bd3
{[%clk 0:02:22.3]} 14... Ne7 {[%clk 0:02:54.1]} 15. Nc3 {[%clk 0:02:21]} 15...
Be6 {[%clk 0:02:46.3]} 16. Be3 {[%clk 0:02:17.6]} 16... Ndc6 {[%clk 0:02:43.7]}
17. Nb5 {[%clk 0:02:11.6]} 17... O-O-O {[%clk 0:02:41.2]} 18. Nxe6 {[%clk
0:02:02.4]} 18... fxe6 {[%clk 0:02:40.8]} 19. Nd6+ {[%clk 0:02:01.2]} 19... Kc7
{[%clk 0:02:29.2]} 20. Nf7 {[%clk 0:01:58.3]} 20... Bg7 {[%clk 0:02:29.5]} 21.
Nxd8 {[%clk 0:01:56.1]} 21... Rxd8 {[%clk 0:02:28.5]} 22. Bxh7 {[%clk
0:01:53.3]} 22... Bxe5 {[%clk 0:02:27.4]} 23. Kf2 {[%clk 0:01:47.3]} 23... Bxb2
{[%clk 0:02:26.8]} 24. Rab1 {[%clk 0:01:46.4]} 24... Bd4 {[%clk 0:02:18.6]} 25.
Rhc1 {[%clk 0:01:39.6]} 25... Bxe3+ {[%clk 0:02:18.5]} 26. Kxe3 {[%clk
0:01:39.7]} 26... Rf8 {[%clk 0:02:18.4]} 27. Bd3 {[%clk 0:01:30.2]} 27... b6
{[%clk 0:02:16]} 28. h5 {[%clk 0:01:27.5]} 28... Kd6 {[%clk 0:02:15.6]} 29. h6
{[%clk 0:01:27.1]} 29... Ne5 {[%clk 0:02:15.6]} 30. Bb5 {[%clk 0:01:20.1]} 30...
Ng4+ {[%clk 0:02:12.4]} 31. Kd2 {[%clk 0:01:17.7]} 31... Nxh6 {[%clk 0:02:12.5]}
32. Rc7 {[%clk 0:01:14.9]} 32... Nhf5 {[%clk 0:01:59.6]} 33. Rd7+ {[%clk
0:01:11.2]} 33... Ke5 {[%clk 0:01:59.6]} 34. Re1+ {[%clk 0:01:09.7]} 34... Kf6
{[%clk 0:01:59.4]} 35. Rxa7 {[%clk 0:01:03.3]} 35... Nd4 {[%clk 0:01:57.7]} 36.
Bf1 {[%clk 0:01:00.2]} 36... Nef5 {[%clk 0:01:53.9]} 37. Rb7 {[%clk 0:00:55.6]}
37... b5 {[%clk 0:01:53.7]} 38. Rb6 {[%clk 0:00:53]} 38... Rc8 {[%clk
0:01:51.8]} 39. Rc1 {[%clk 0:00:50.6]} 39... Ra8 {[%clk 0:01:46.4]} 40. Bxb5
{[%clk 0:00:35.7]} 40... Rxa2+ {[%clk 0:01:45.3]} 41. Kc3 {[%clk 0:00:29.1]}
41... Nxb5+ {[%clk 0:01:36.3]} 42. Rxb5 {[%clk 0:00:28.4]} 42... f2 {[%clk
0:01:35.4]} 43. Rb2 {[%clk 0:00:26]} 43... Rxb2 {[%clk 0:01:35.3]} 44. Kxb2
{[%clk 0:00:25.7]} 44... Ng3 {[%clk 0:01:36]} 45. Kc3 {[%clk 0:00:21]} 45...
f1=Q {[%clk 0:01:36.1]} 46. Rxf1+ {[%clk 0:00:20.6]} 46... Nxf1 {[%clk 0:01:37]}
47. Kd3 {[%clk 0:00:20.4]} 47... e5 {[%clk 0:01:36.2]} 48. Ke2 {[%clk
0:00:19.9]} 48... Ng3+ {[%clk 0:01:36.4]} 49. Kf3 {[%clk 0:00:19.9]} 49... Nf5
{[%clk 0:01:36.7]} 0-1

[Event "Late-Titled-Tuesday-Blitz-June-25-2024"]
[Site "Chess.com"]
[Date "2024.06.25"]
[Round "11"]
[White "jinxy2009"]
[Black "Jahonas"]
[Result "0-1"]
[WhiteElo "2261"]
[BlackElo "2420"]
[TimeControl "180+1"]
[EndTime "16:05:35 PDT"]
[Termination "Jahonas won by resignation"]

1. c4 {[%clk 0:03:00.9]} 1... Nf6 {[%clk 0:02:59]} 2. Nf3 {[%clk 0:03:01.1]}
2... e6 {[%clk 0:02:56.9]} 3. g3 {[%clk 0:03:01.2]} 3... d5 {[%clk 0:02:56.5]}
4. Bg2 {[%clk 0:03:01.5]} 4... Be7 {[%clk 0:02:56.8]} 5. O-O {[%clk 0:03:01.7]}
5... O-O {[%clk 0:02:57]} 6. b3 {[%clk 0:03:02.1]} 6... b6 {[%clk 0:02:57]} 7.
Bb2 {[%clk 0:03:02.3]} 7... Bb7 {[%clk 0:02:57.4]} 8. d3 {[%clk 0:02:40.1]} 8...
Nc6 {[%clk 0:02:52.9]} 9. a3 {[%clk 0:02:32.2]} 9... a5 {[%clk 0:02:50.5]} 10.
Qc2 {[%clk 0:02:30.6]} 10... Qd7 {[%clk 0:02:45.9]} 11. e3 {[%clk 0:02:25]}
11... Rfd8 {[%clk 0:02:42]} 12. Nc3 {[%clk 0:02:20.6]} 12... dxc4 {[%clk
0:02:38.8]} 13. dxc4 {[%clk 0:02:20.7]} 13... Qd3 {[%clk 0:02:28.5]} 14. Rac1
{[%clk 0:02:17.1]} 14... Qxc2 {[%clk 0:02:27.4]} 15. Rxc2 {[%clk 0:02:17.3]}
15... Nd7 {[%clk 0:02:20.7]} 16. Rd2 {[%clk 0:02:15.3]} 16... Nc5 {[%clk
0:02:19.2]} 17. Rfd1 {[%clk 0:01:37.9]} 17... Nxb3 {[%clk 0:02:13.4]} 18. Rxd8+
{[%clk 0:01:38]} 18... Rxd8 {[%clk 0:02:13]} 19. Rxd8+ {[%clk 0:01:37.5]} 19...
Nxd8 {[%clk 0:02:11.3]} 20. Nb5 {[%clk 0:01:36.1]} 20... c6 {[%clk 0:02:00.3]}
21. Nbd4 {[%clk 0:01:34.8]} 21... Nxd4 {[%clk 0:01:53.8]} 22. Nxd4 {[%clk
0:01:35.7]} 22... Kf8 {[%clk 0:01:47.1]} 23. Kf1 {[%clk 0:01:35.6]} 23... Ke8
{[%clk 0:01:46.8]} 24. Ke2 {[%clk 0:01:35.8]} 24... Kd7 {[%clk 0:01:47.1]} 25.
Kd2 {[%clk 0:01:36.2]} 25... Bf6 {[%clk 0:01:46.8]} 26. Bc1 {[%clk 0:01:31.6]}
26... Ba6 {[%clk 0:01:45.1]} 27. Bf1 {[%clk 0:01:23.7]} 27... Nb7 {[%clk
0:01:41.2]} 28. g4 {[%clk 0:01:05]} 28... Nd6 {[%clk 0:01:36.5]} 29. Be2 {[%clk
0:00:46.2]} 29... Bxd4 {[%clk 0:01:34.8]} 30. exd4 {[%clk 0:00:46.1]} 30... Bxc4
{[%clk 0:01:34.7]} 31. Bxc4 {[%clk 0:00:43.9]} 31... Nxc4+ {[%clk 0:01:34.1]}
32. Kc3 {[%clk 0:00:44.8]} 32... b5 {[%clk 0:01:33.3]} 33. h4 {[%clk 0:00:37.5]}
33... Kd6 {[%clk 0:01:32.6]} 34. h5 {[%clk 0:00:36.5]} 34... g6 {[%clk
0:01:32.4]} 35. hxg6 {[%clk 0:00:34.2]} 35... hxg6 {[%clk 0:01:32.2]} 36. f4
{[%clk 0:00:32.7]} 36... Kd5 {[%clk 0:01:32.2]} 37. Kd3 {[%clk 0:00:26.5]} 37...
f5 {[%clk 0:01:31]} 38. gxf5 {[%clk 0:00:24.5]} 38... exf5 {[%clk 0:01:30.4]}
39. Kc3 {[%clk 0:00:16.4]} 39... Nxa3 {[%clk 0:01:30.1]} 40. Bxa3 {[%clk
0:00:16]} 40... b4+ {[%clk 0:01:30.4]} 41. Kb3 {[%clk 0:00:16.6]} 41... bxa3
{[%clk 0:01:30]} 42. Kxa3 {[%clk 0:00:17.5]} 42... Kxd4 {[%clk 0:01:30.5]} 43.
Ka4 {[%clk 0:00:18.4]} 43... Ke4 {[%clk 0:01:30.9]} 44. Kxa5 {[%clk 0:00:19.3]}
44... Kxf4 {[%clk 0:01:31.4]} 45. Kb6 {[%clk 0:00:20.2]} 45... Ke3 {[%clk
0:01:31.9]} 46. Kxc6 {[%clk 0:00:21.1]} 46... f4 {[%clk 0:01:32.6]} 47. Kd5
{[%clk 0:00:20.8]} 47... g5 {[%clk 0:01:33.5]} 48. Ke5 {[%clk 0:00:21.3]} 48...
g4 {[%clk 0:01:34.2]} 49. Ke6 {[%clk 0:00:22.2]} 49... g3 {[%clk 0:01:34.8]} 50.
Ke5 {[%clk 0:00:23.1]} 50... g2 {[%clk 0:01:35.4]} 51. Ke6 {[%clk 0:00:24]}
51... g1=Q {[%clk 0:01:35.4]} 52. Ke5 {[%clk 0:00:24.9]} 52... Qg5+ {[%clk
0:01:34.3]} 53. Ke6 {[%clk 0:00:25.8]} 53... f3 {[%clk 0:01:33.8]} 54. Kd6
{[%clk 0:00:25]} 54... f2 {[%clk 0:01:34.2]} 55. Ke6 {[%clk 0:00:25.9]} 55...
f1=Q {[%clk 0:01:33.4]} 0-1